bitfinex/quotes_SOLUSD_20260228
["timestamp","ask_amount","ask_price","bid_price","bid_amount"]
[1772293315891,12.36659535,80.863,80.844,4.45096297]
[1772293316098,3.99599288,80.862,80.844,4.45096297]
[1772293319397,12.36567782,80.869,80.844,4.45096297]
[1772293319579,12.36567782,80.869,80.846,4.45096297]
[1772293320108,3.99599288,80.868,80.846,4.45096297]
[1772293321276,3.99599288,80.866,80.835,4.45096297]
[1772293321677,3.99599288,80.859,80.832,4.45096297]
[1772293323398,12.36598365,80.867,80.841,4.45096297]
[1772293323594,12.36551002,80.871,80.841,4.45096297]
[1772293323910,6.11309802,80.88,80.841,4.45096297]
[1772293324089,12.36204838,80.893,80.861,4.45096297]
[1772293324280,12.36204838,80.893,80.86,6.11309802]
[1772293324281,3.99599288,80.879,80.849,4.45096297]
[1772293325599,3.99599288,80.869,80.838,4.45096297]
[1772293327295,3.99599288,80.859,80.838,4.45096297]
[1772293327697,3.99599288,80.859,80.833,16.82210268]
[1772293327897,3.99599288,80.859,80.834,4.45096297]
[1772293328499,3.99599288,80.867,80.834,4.45096297]
[1772293329695,3.99599288,80.875,80.84,6.11309802]
[1772293329996,12.3644266,80.878,80.841,4.45096297]
[1772293330198,3.99599288,80.877,80.842,4.45096297]
[1772293331697,3.99599288,80.899,80.85,6.11309802]
[1772293332008,0.1,80.93,80.861,4.15262729]
[1772293332009,3.99599288,80.889,80.861,4.15262729]
[1772293332891,6.11309802,80.88,80.854,4.15262729]
[1772293333092,3.99599288,80.869,80.828,4.15262729]
[1772293333299,6.11309802,80.86,80.828,4.15262729]
[1772293333501,3.99599288,80.849,80.821,4.15262729]
[1772293333805,3.99599288,80.849,80.823,4.15262729]
[1772293335120,3.99599288,80.849,80.825,4.15262729]
[1772293335807,3.99599288,80.847,80.819,4.15262729]
[1772293336506,6.11309802,80.85,80.819,4.15262729]
[1772293337004,3.99599288,80.859,80.821,4.15262729]
[1772293337206,3.99599288,80.859,80.823,4.15262729]
[1772293337705,3.99599288,80.857,80.823,4.15262729]
[1772293337904,3.99599288,80.857,80.822,43.3050407]
[1772293337905,3.99599288,80.857,80.831,4.15262729]
[1772293339904,3.99599288,80.857,80.832,12.37133808]
[1772293340106,3.99599288,80.857,80.833,4.15262729]
[1772293342992,3.99599288,80.857,80.835,4.15262729]
[1772293347408,3.99599288,80.857,80.836,12.37072591]
[1772293347609,3.99599288,80.857,80.837,4.15262729]
[1772293353697,3.99599288,80.855,80.831,4.15262729]
[1772293354118,3.99599288,80.855,80.824,4.15262729]
[1772293354918,3.99599288,80.853,80.824,16.52508836]
[1772293355717,3.99599288,80.853,80.824,12.37246107]
[1772293355920,3.99599288,80.849,80.816,12.37368743]
[1772293356715,3.99599288,80.849,80.816,16.52631472]
[1772293356911,3.99599288,80.847,80.817,4.15262729]
[1772293357898,3.99599288,80.847,80.821,4.15262729]
[1772293358706,3.49599288,80.847,80.821,4.15262729]
[1772293359217,12.36919575,80.846,80.821,4.15262729]
[1772293359422,12.36919575,80.846,80.822,4.15262729]
[1772293360519,12.36919575,80.846,80.817,4.31725533]
[1772293360816,3.50099288,80.845,80.818,12.37348115]
[1772293361020,3.50099288,80.845,80.819,4.31725533]
[1772293361421,3.50099288,80.843,80.82,16.69043028]
[1772293361811,3.50099288,80.843,80.821,4.31725533]
[1772293364014,3.50099288,80.843,80.822,16.47745303]
[1772293364918,3.50099288,80.843,80.823,4.10458426]
[1772293366032,3.50099288,80.843,80.824,16.47714686]
[1772293366213,3.50099288,80.843,80.825,4.10458426]
[1772293367028,3.50099288,80.848,80.825,4.10458426]
[1772293367634,3.50099288,80.846,80.825,4.10458426]
[1772293369031,3.50099288,80.846,80.827,4.10458426]
[1772293369632,3.50099288,80.851,80.827,4.10458426]
[1772293370830,15.86957667,80.85,80.827,4.10458426]
[1772293371140,3.50099288,80.849,80.822,4.10458426]
[1772293372330,3.50099288,80.847,80.822,4.10458426]
[1772293372710,3.50099288,80.847,80.817,4.10458426]
[1772293373714,3.50099288,80.847,80.81,18.49304344]
[1772293373715,3.50099288,80.839,80.806,16.4797614]
[1772293373922,3.50099288,80.839,80.806,12.37517714]
[1772293374415,3.50099288,80.837,80.804,4.10458426]
[1772293377439,3.50099288,80.835,80.806,4.10458426]
[1772293378935,3.50099288,80.833,80.806,4.10458426]
[1772293380542,3.50099288,80.842,80.811,4.10458426]
[1772293380845,3.50099288,80.855,80.821,4.10458426]
[1772293381031,3.50099288,80.853,80.823,4.10458426]
[1772293382130,12.58243005,80.86,80.819,4.10458426]
[1772293382131,3.50099288,80.849,80.819,4.10458426]
[1772293383037,3.50099288,80.829,80.792,4.10458426]
[1772293384248,3.50099288,80.819,80.783,4.10458426]
[1772293384447,3.50099288,80.809,80.783,4.10458426]
[1772293384748,3.50099288,80.814,80.783,4.10458426]
[1772293386260,3.50099288,80.809,80.78,8.66798076]
[1772293386632,3.50099288,80.799,80.78,8.63261719]
[1772293388039,3.50099288,80.799,80.78,21.01178549]
[1772293389354,3.46598295,80.805,80.781,4.10458426]
[1772293390046,3.46598295,80.805,80.78,21.01178549]
[1772293391156,3.46598295,80.803,80.78,8.63261719]
[1772293392671,3.46598295,80.801,80.78,8.63261719]
[1772293392838,3.46598295,80.799,80.78,8.63261719]
[1772293393641,3.46598295,80.808,80.782,4.42902403]
[1772293394038,3.46598295,80.808,80.78,8.63261719]
[1772293395134,3.46598295,80.806,80.78,8.63261719]
[1772293397056,3.46598295,80.804,80.78,8.63261719]
[1772293397852,4.17672179,80.85,80.793,4.42902403]
[1772293398054,4.17672179,80.85,80.83,6.11839789]
[1772293398449,4.17672179,80.87,80.84,10.54742192]
[1772293398649,4.17672179,80.87,80.86,6.11839789]
[1772293399037,4.17672179,80.879,80.86,6.11839789]
[1772293399362,4.17672179,80.877,80.85,6.11839789]
[1772293401154,4.17672179,80.877,80.852,4.42902403]
[1772293401464,4.17672179,80.877,80.851,12.36843081]
[1772293401465,4.17672179,80.884,80.861,4.42902403]
[1772293401855,4.17672179,80.882,80.861,4.42902403]
[1772293403345,4.17672179,80.88,80.861,4.42902403]
[1772293403553,4.17672179,80.88,80.851,12.36842981]
[1772293403957,4.17672179,80.88,80.847,4.42902403]
[1772293403958,4.17672179,80.88,80.84,4.42902403]
[1772293404141,4.17672179,80.88,80.85,6.11839789]
[1772293405239,12.36414891,80.879,80.85,18.48695029]
[1772293405556,4.17672179,80.878,80.85,18.48695029]
[1772293406154,4.17672179,80.878,80.86,6.11839789]
[1772293407561,4.17672179,80.876,80.86,6.11839789]
[1772293408144,4.17672179,80.876,80.85,18.48695029]
[1772293408860,4.17672179,80.869,80.823,4.42902403]
[1772293409042,4.17672179,80.869,80.83,6.11839789]
[1772293409655,6.11839789,80.87,80.83,6.11839789]
[1772293409656,4.17672179,80.867,80.83,6.11839789]
[1772293410766,4.17672179,80.867,80.84,6.11839789]
[1772293411340,4.17672179,80.867,80.829,16.8006724]
[1772293411341,4.17672179,80.865,80.83,10.54742192]
[1772293412664,4.17672179,80.863,80.83,10.54742192]
[1772293413650,4.17672179,80.859,80.82,6.11839789]
[1772293414145,4.17672179,80.859,80.831,4.42902403]
[1772293414469,4.17672179,80.859,80.84,6.11839789]
[1772293414666,30.91204661,80.875,80.842,4.42902403]
[1772293414865,30.91204661,80.875,80.85,6.11839789]
[1772293415669,30.91204661,80.875,80.847,4.42902403]
[1772293415970,30.91204661,80.875,80.84,10.54742192]
[1772293416167,30.91204661,80.875,80.84,6.11839789]
[1772293416470,30.91204661,80.875,80.841,4.42902403]
[1772293416673,4.17672179,80.874,80.841,4.42902403]
[1772293418777,4.17672179,80.872,80.841,4.42902403]
[1772293419954,4.17672179,80.872,80.843,4.42902403]
[1772293420782,43.27773174,80.873,80.843,4.42902403]
[1772293420783,4.46617777,80.87,80.843,4.42902403]
[1772293423273,12.36567782,80.869,80.843,4.42902403]
[1772293423476,4.46617777,80.868,80.843,4.42902403]
[1772293425776,4.08832241,80.866,80.836,4.11103091]
[1772293426176,4.08832241,80.866,80.841,4.11103091]
[1772293428669,4.08832241,80.849,80.806,12.3752966]
[1772293428869,4.08832241,80.853,80.8,18.49057793]
[1772293429078,4.08832241,80.853,80.82,6.11445789]
[1772293430882,4.08832241,80.851,80.822,4.11103091]
[1772293434787,4.08832241,80.849,80.822,4.11103091]
[1772293435968,12.36888976,80.848,80.822,4.11103091]
[1772293436169,4.08832241,80.847,80.822,4.11103091]
[1772293436495,4.08832241,80.847,80.824,4.11103091]
[1772293436672,12.36888976,80.848,80.824,4.11103091]
[1772293438792,16.45644727,80.853,80.826,4.11103091]
[1772293438992,4.08832241,80.852,80.826,4.11103091]
[1772293440300,4.08832241,80.852,80.825,12.37240952]
[1772293440301,12.36843081,80.851,80.828,4.11103091]
[1772293440674,4.08832241,80.858,80.831,4.11103091]
[1772293441094,4.08832241,80.857,80.831,4.11103091]
[1772293442490,4.08832241,80.849,80.81,6.11445789]
[1772293442695,4.08832241,80.849,80.811,12.37455296]
[1772293443495,4.08832241,80.855,80.82,6.11445789]
[1772293443696,4.08832241,80.868,80.84,6.11445789]
[1772293444372,4.08832241,80.868,80.843,4.11103091]
[1772293446278,4.08832241,80.866,80.843,4.11103091]
[1772293448893,4.08832241,80.873,80.843,4.11103091]
[1772293449081,4.08832241,80.879,80.851,4.11103091]
[1772293451804,4.06059817,80.877,80.853,4.1111416]
[1772293452491,12.36430178,80.878,80.853,4.1111416]
[1772293453001,4.06059817,80.88,80.853,4.1111416]
[1772293454007,4.06059817,80.88,80.854,12.36797189]
[1772293454202,4.06059817,80.88,80.854,16.47911349]
[1772293454908,12.36262038,80.889,80.861,4.1111416]
[1772293455084,4.06059817,80.89,80.861,4.1111416]
[1772293455484,4.06059817,80.89,80.862,4.1111416]
[1772293457298,4.06059817,80.888,80.864,4.1111416]
[1772293458482,12.36109222,80.899,80.866,4.1111416]
[1772293458690,12.36109222,80.899,80.871,4.1111416]
[1772293458989,4.06059817,80.898,80.871,4.1111416]
[1772293459388,4.06059817,80.889,80.855,4.1111416]
[1772293459584,4.06059817,80.889,80.855,12.36781893]
[1772293459796,4.06059817,80.889,80.856,4.1111416]
[1772293460105,4.06059817,80.869,80.834,4.1111416]
[1772293460588,12.36583073,80.868,80.835,12.37087895]
[1772293460789,4.06059817,80.867,80.836,4.1111416]
[1772293463304,4.06059817,80.865,80.838,4.1111416]
[1772293464785,4.06059817,80.863,80.84,4.1111416]
[1772293466108,4.06059817,80.863,80.841,4.1111416]
[1772293467508,4.06059817,80.863,80.842,12.36980777]
[1772293468499,4.06059817,80.863,80.844,16.48064335]
[1772293468900,4.06059817,80.863,80.844,12.36950175]
[1772293469202,4.06059817,80.868,80.845,4.1111416]
[1772293469589,4.06059817,80.874,80.851,4.1111416]
[1772293470113,12.36460754,80.876,80.851,4.1111416]
[1772293470510,4.06059817,80.879,80.851,4.1111416]
[1772293470708,4.06059817,80.879,80.853,4.1111416]
[1772293471114,16.42391858,80.885,80.861,4.1111416]
[1772293471789,12.36332041,80.885,80.861,4.1111416]
[1772293473014,4.06059817,80.885,80.861,4.1111416]
[1772293473321,4.06059817,80.885,80.863,4.1111416]
[1772293475013,12.3633846,80.884,80.863,4.1111416]
[1772293475618,4.06059817,80.883,80.861,4.1111416]
[1772293476014,12.3633846,80.884,80.861,4.1111416]
[1772293476523,4.06059817,80.883,80.862,4.1111416]
[1772293478008,12.36262038,80.889,80.864,4.1111416]
[1772293479125,12.36197063,80.894,80.864,4.1111416]
[1772293480123,12.36107521,80.9,80.871,4.1111416]
[1772293481123,16.56278831,80.9,80.871,4.1111416]
[1772293481620,4.2017131,80.899,80.871,4.1111416]
[1772293482127,12.36124502,80.898,80.872,12.36521911]
[1772293482324,4.2017131,80.897,80.873,4.42205583]
[1772293483423,16.56326373,80.896,80.874,12.36491332]
[1772293483631,16.56326373,80.896,80.875,4.42205583]
[1772293484136,4.09143522,80.889,80.857,4.32879067]
[1772293486134,4.09143522,80.887,80.859,4.32879067]
[1772293488430,4.09143522,80.885,80.861,4.32879067]
[1772293491130,4.09143522,80.885,80.863,4.32879067]
[1772293494817,6.10938844,80.89,80.863,4.32879067]
[1772293494818,4.09143522,80.883,80.863,4.32879067]
[1772293495025,4.09143522,80.883,80.864,12.36644242]
[1772293495330,4.09143522,80.883,80.865,4.32879067]
[1772293500647,4.09143522,80.881,80.865,4.32879067]
[1772293501639,4.09143522,80.869,80.839,4.32879067]
[1772293502943,4.09143522,80.867,80.841,4.32879067]
[1772293503639,4.09143522,80.859,80.834,4.32879067]
[1772293504637,4.09143522,80.859,80.835,4.32879067]
[1772293504842,4.09143522,80.857,80.836,16.69951658]
[1772293505224,4.09143522,80.857,80.837,4.32879067]
[1772293505637,4.09143522,80.9,80.85,6.10938844]
[1772293505943,4.09143522,80.909,80.871,4.32879067]
[1772293506133,4.09143522,80.909,80.881,4.32879067]
[1772293506619,4.09143522,80.915,80.881,4.32879067]
[1772293507124,12.35876973,80.915,80.883,4.32879067]
[1772293507337,4.09143522,80.889,80.864,4.32879067]
[1772293507540,4.09143522,80.889,80.865,12.36628949]
[1772293507833,4.09143522,80.889,80.866,4.32879067]
[1772293509521,4.09143522,80.888,80.86,4.32879067]
[1772293509837,4.09143522,80.879,80.852,16.69706851]
[1772293510022,4.09143522,80.879,80.853,4.32879067]
[1772293512142,4.36936376,80.878,80.854,12.36797189]
[1772293512332,4.36936376,80.878,80.853,4.32879067]
[1772293513044,4.36936376,80.869,80.843,3.69383402]
[1772293513546,4.36936376,80.869,80.844,4.16577483]
[1772293514044,4.36936376,80.867,80.845,12.36931734]
[1772293514348,6.10938844,80.88,80.846,4.16577483]
[1772293514531,4.36936376,80.873,80.846,4.16577483]
[1772293515428,16.73450981,80.873,80.847,12.36904275]
[1772293515634,4.36936376,80.872,80.848,4.16577483]
[1772293517631,4.36936376,80.871,80.849,12.36873678]
[1772293517948,4.36936376,80.871,80.85,4.16577483]
[1772293519451,4.36936376,80.871,80.845,4.16577483]
[1772293520129,4.36936376,80.869,80.846,16.53497058]
[1772293520328,4.36936376,80.869,80.847,4.16577483]
[1772293521542,4.36936376,80.869,80.842,12.36971681]
[1772293521848,4.36936376,80.869,80.84,4.16577483]
[1772293522146,4.36936376,80.867,80.84,4.16577483]
[1772293522768,4.36936376,80.867,80.842,4.16577483]
[1772293523848,16.73392779,80.877,80.842,4.16577483]
[1772293524026,4.36936376,80.876,80.842,4.16577483]
[1772293525547,12.36476043,80.875,80.842,4.16577483]
[1772293525752,4.36936376,80.874,80.844,4.16577483]
[1772293526758,12.36476043,80.875,80.831,1.23714911]
[1772293526759,4.36936376,80.849,80.831,1.23714911]
[1772293527055,4.36936376,80.839,80.806,4.16577483]
[1772293527428,4.36936376,80.829,80.8,4.16577483]
[1772293527661,12.37332805,80.819,80.8,4.16577483]
[1772293527952,4.36936376,80.818,80.8,4.16577483]
[1772293528258,4.36936376,80.818,80.793,4.16577483]
[1772293529240,4.36936376,80.809,80.787,4.16577483]
[1772293529833,16.74437613,80.808,80.787,4.16577483]
[1772293530150,4.36936376,80.815,80.788,4.16577483]
[1772293531457,6.10938844,80.81,80.788,4.16577483]
[1772293532056,6.10938844,80.81,80.79,4.16577483]
[1772293533445,4.36936376,80.809,80.79,4.16577483]
[1772293536057,4.36936376,80.802,80.784,4.16577483]
[1772293537049,6.10938844,80.81,80.784,4.16577483]
[1772293537050,4.36936376,80.809,80.784,4.16577483]
[1772293539542,6.10938844,80.83,80.79,6.10938844]
[1772293539749,4.36936376,80.829,80.791,4.16577483]
[1772293542250,4.14736313,80.819,80.793,4.37473783]
[1772293544257,4.37534288,80.817,80.794,12.37715671]
[1772293545568,4.37534288,80.809,80.788,4.14203493]
[1772293546761,16.75035525,80.808,80.788,4.14203493]
[1772293546948,4.37534288,80.807,80.788,4.14203493]
[1772293547550,4.37534288,80.807,80.781,4.14203493]
[1772293548646,4.37534288,80.805,80.783,4.14203493]
[1772293551271,6.12096315,80.8,80.783,4.14203493]
[1772293552663,4.37534288,80.799,80.78,8.63261719]
[1772293552861,4.37534288,80.798,80.78,8.63261719]
[1772293553165,4.37534288,80.798,80.781,4.14203493]
[1772293553858,4.37534288,80.798,80.78,8.63261719]
[1772293554055,4.37534288,80.789,80.78,3.3801272]
[1772293555167,4.37534288,80.787,80.755,4.14203493]
[1772293555368,4.37534288,80.779,80.755,4.14203493]
[1772293555571,6.12096315,80.77,80.75,0.2]
[1772293555756,4.37534288,80.759,80.75,0.2]
[1772293556072,4.37534288,80.764,80.75,0.2]
[1772293557571,16.75725043,80.763,80.75,0.2]
[1772293558065,4.37534288,80.762,80.75,0.2]
[1772293558256,6.12096315,80.76,80.75,0.2]
[1772293559457,10.49630603,80.76,80.75,0.2]
[1772293559657,22.87870248,80.76,80.75,0.2]
[1772293560368,4.37534288,80.759,80.74,0.2]
[1772293560570,18.5033596,80.76,80.74,4.34203493]
[1772293560571,6.12096315,80.76,80.74,4.34203493]
[1772293560757,49.51012783,80.792,80.742,4.14203493]
[1772293560758,16.75725043,80.763,80.742,4.14203493]
[1772293560957,6.12096315,80.76,80.742,4.14203493]
[1772293561572,4.37534288,80.759,80.74,0.2]
[1772293562377,18.50345196,80.76,80.74,4.34203493]
[1772293562683,4.37534288,80.759,80.74,4.34203493]
[1772293563072,4.37534288,80.769,80.742,4.14203493]
[1772293563586,4.37534288,80.782,80.742,4.14203493]
[1772293563880,4.37534288,80.782,80.741,43.34848465]
[1772293563881,4.37534288,80.78,80.744,4.14203493]
[1772293564079,4.37534288,80.788,80.751,4.14203493]
[1772293564375,4.37534288,80.841,80.786,4.14203493]
[1772293564579,7.99105395,80.848,80.83,6.12096315]
[1772293564771,7.99105395,80.848,80.831,4.14203493]
[1772293565073,12.3670558,80.86,80.832,4.14203493]
[1772293565374,12.36292605,80.887,80.85,16.3769373]
[1772293565871,12.36567782,80.869,80.824,12.3725626]
[1772293566083,12.36567782,80.869,80.83,16.3769373]
[1772293566258,12.36567782,80.869,80.831,0.90623873]
[1772293566674,4.37534288,80.868,80.831,0.90623873]
[1772293568081,4.37534288,80.866,80.832,12.37133808]
[1772293568460,4.37534288,80.866,80.84,16.3769373]
[1772293568666,4.37534288,80.866,80.833,0.90623873]
[1772293570786,4.14481029,80.864,80.833,0.90623873]
[1772293571876,4.14481029,80.862,80.821,0.90623873]
[1772293572086,4.14481029,80.862,80.831,0.90623873]
[1772293573681,4.14481029,80.862,80.83,16.3769373]
[1772293573682,4.14481029,80.877,80.85,16.3769373]
[1772293573874,4.14481029,80.877,80.84,16.3769373]
[1772293577287,4.14481029,80.869,80.823,12.37267784]
[1772293578491,4.14481029,80.869,80.82,16.3769373]
[1772293580312,43.28040757,80.868,80.82,17.28317603]
[1772293580590,4.14481029,80.867,80.82,17.28317603]
[1772293581476,4.14481029,80.865,80.82,17.28317603]
[1772293582826,4.14481029,80.863,80.821,13.27926059]
[1772293582978,4.14481029,80.863,80.822,0.90623873]
[1772293583794,12.36594177,80.868,80.85,16.3769373]
[1772293583992,12.36534712,80.872,80.851,0.90623873]
[1772293584194,4.14481029,80.869,80.826,1.23722564]
[1772293584395,4.14481029,80.869,80.83,16.3769373]
[1772293584805,12.36583073,80.868,80.831,13.27772986]
[1772293585101,4.14481029,80.867,80.832,0.90623873]
[1772293585297,4.14481029,80.875,80.84,16.3769373]
[1772293585483,4.14481029,80.875,80.851,0.90623873]
[1772293586799,16.50972361,80.874,80.851,0.90623873]
[1772293587097,4.14481029,80.873,80.851,0.90623873]
[1772293588700,16.5100294,80.872,80.842,0.90623873]
[1772293590203,4.14481029,80.871,80.842,0.90623873]
[1772293590983,4.14481029,80.871,80.85,7.01930248]
[1772293591290,4.14481029,80.871,80.85,0.90623873]
[1772293591882,4.14481029,80.871,80.844,0.90623873]
[1772293594307,4.14481029,80.869,80.844,0.90623873]
[1772293595080,4.14481029,80.869,80.83,0.90623873]
[1772293595296,4.14481029,80.869,80.827,12.37198221]
[1772293596009,4.14481029,80.859,80.821,16.62800789]
[1772293596186,4.14481029,80.857,80.821,16.62800789]
[1772293598807,4.14481029,80.855,80.821,16.62800789]
[1772293600009,4.14481029,80.849,80.821,16.62800789]
[1772293600680,43.29111418,80.848,80.821,16.62800789]
[1772293600886,4.31995839,80.847,80.821,16.62800789]
[1772293602199,43.29218513,80.846,80.821,16.62800789]
[1772293602400,4.31995839,80.845,80.821,16.62800789]
[1772293604012,4.31995839,80.849,80.822,0.90623873]
[1772293604803,6.11824831,80.87,80.83,6.11824831]
[1772293604804,4.17197742,80.856,80.83,6.11824831]
[1772293604997,4.17197742,80.856,80.831,0.90623873]
[1772293605417,4.17197742,80.856,80.823,0.90623873]
[1772293607213,4.17197742,80.854,80.823,0.90623873]
[1772293609719,4.17197742,80.852,80.823,0.90623873]
[1772293611819,4.17197742,80.85,80.823,0.90623873]
[1772293612906,4.17197742,80.85,80.821,16.62800789]
[1772293613107,4.17197742,80.85,80.822,0.90623873]
[1772293615205,4.17197742,80.848,80.824,0.90623873]
[1772293616506,4.17197742,80.877,80.841,0.90623873]
[1772293616808,4.17197742,80.877,80.85,6.11824831]
[1772293617200,4.17197742,80.877,80.84,7.02448704]
[1772293617407,4.17197742,80.877,80.83,7.02448704]
[1772293617727,4.17197742,80.877,80.831,0.90623873]
[1772293618424,4.17197742,80.877,80.811,0.90623873]
[1772293618425,4.17197742,80.859,80.811,0.90623873]
[1772293618624,4.17197742,80.859,80.774,6.7]
[1772293618625,4.17197742,80.849,80.801,0.90623873]
[1772293618922,4.17197742,80.849,80.81,6.11824831]
[1772293619430,4.17197742,80.847,80.81,6.11824831]
[1772293620507,4.17197742,80.845,80.815,3.69383402]
[1772293620710,4.17197742,80.845,80.81,6.11824831]
[1772293620903,60.88970587,80.934,80.814,0.90623873]
[1772293621108,60.88970587,80.934,80.813,0.28432314]
[1772293621109,4.17197742,80.875,80.822,0.90623873]
[1772293621317,4.17197742,80.869,80.822,0.90623873]
[1772293621629,4.17197742,80.859,80.82,6.11824831]
[1772293622509,4.17197742,80.857,80.817,0.90623873]
[1772293624420,4.17197742,80.855,80.817,0.90623873]
[1772293625226,4.17197742,80.855,80.812,12.37435555]
[1772293625525,43.2868309,80.856,80.801,13.30240631]
[1772293625526,4.17197742,80.849,80.801,13.30240631]
[1772293625729,4.17197742,80.839,80.801,13.30240631]
[1772293626139,4.17197742,80.839,80.801,25.67843299]
[1772293626833,4.17197742,80.837,80.801,25.67843299]
[1772293627229,4.17197742,80.837,80.802,0.90623873]
[1772293627433,4.17197742,80.837,80.801,25.67843299]
[1772293627434,4.17197742,80.841,80.811,0.90623873]
[1772293629619,4.17197742,80.839,80.82,6.11824831]
[1772293629815,4.17197742,80.839,80.816,0.90623873]
[1772293633741,4.44399077,80.874,80.831,0.90623873]
[1772293633938,4.44399077,80.867,80.841,0.90623873]
[1772293634140,4.44399077,80.867,80.832,0.90623873]
[1772293635836,16.80957578,80.87,80.841,0.90623873]
[1772293636027,4.44399077,80.869,80.848,0.90623873]
[1772293636431,4.44399077,80.869,80.85,6.11824831]
[1772293636920,4.44399077,80.869,80.85,7.02448704]
[1772293637116,12.36369718,80.882,80.861,0.90623873]
[1772293637342,4.44399077,80.881,80.851,0.90623873]
[1772293637838,12.36399604,80.88,80.852,12.36827784]
[1772293638020,4.44399077,80.879,80.853,0.90623873]
[1772293639021,12.36430178,80.878,80.853,0.90623873]
[1772293640144,12.36323174,80.885,80.853,0.90623873]
[1772293640323,4.44399077,80.884,80.853,0.90623873]
[1772293641936,4.44399077,80.879,80.844,0.90623873]
[1772293642241,61.90541507,80.9,80.851,0.90623873]
[1772293642242,4.44399077,80.894,80.851,0.90623873]
[1772293642433,4.44399077,80.894,80.85,6.11824831]
[1772293642434,4.44399077,80.893,80.861,0.90623873]
[1772293643328,4.44399077,80.893,80.86,6.11824831]
[1772293643632,4.44399077,80.889,80.843,0.90623873]
[1772293643836,4.44399077,80.889,80.841,12.36996078]
[1772293644644,4.44399077,80.887,80.841,12.36996078]
[1772293645243,0.1,80.9,80.87,6.11824831]
[1772293645244,4.44399077,80.892,80.87,6.11824831]
[1772293645533,4.44399077,80.892,80.86,6.11824831]
[1772293646823,4.44399077,80.89,80.86,6.11824831]
[1772293648939,4.44399077,80.888,80.86,6.11824831]
[1772293649444,4.44399077,80.879,80.835,12.37073093]
[1772293650027,4.44399077,80.879,80.84,6.11824831]
[1772293650818,4.44399077,80.877,80.841,13.27619951]
[1772293651023,4.44399077,80.877,80.842,0.90623873]
[1772293652642,4.44399077,80.877,80.823,1.23727156]
[1772293652643,4.44399077,80.869,80.822,0.90623873]
[1772293653026,4.44399077,80.867,80.824,13.27880133]
[1772293653455,4.44399077,80.867,80.825,0.90623873]
[1772293654355,4.44399077,80.867,80.816,30.93440501]
[1772293654356,4.44399077,80.849,80.811,12.37446252]
[1772293655341,4.44399077,80.849,80.806,12.37526309]
[1772293655540,4.44399077,80.849,80.804,0.90623873]
[1772293656235,4.44399077,80.847,80.809,12.37481411]
[1772293657550,4.44399077,80.845,80.809,12.37481411]
[1772293658152,4.44399077,80.845,80.81,7.02448704]
[1772293658337,4.44399077,80.845,80.804,12.37548129]
[1772293658531,4.44399077,80.839,80.804,12.37548129]
[1772293659248,4.44399077,80.839,80.796,0.90623873]
[1772293659446,4.44399077,80.829,80.813,4.30240631]
[1772293659650,4.44399077,80.827,80.813,4.30240631]
[1772293661144,4.44399077,80.827,80.796,4.39781277]
[1772293661851,4.25955509,80.825,80.796,4.39781277]
[1772293664440,4.14530154,80.823,80.796,4.39781277]
[1772293664638,4.14530154,80.823,80.798,4.06438704]
[1772293665386,4.14530154,80.832,80.798,4.06438704]
[1772293665532,6.122318,80.88,80.801,4.06438704]
[1772293665533,12.37191552,80.829,80.801,4.06438704]
[1772293665857,4.14530154,80.833,80.811,4.06438704]
[1772293666064,12.37133808,80.832,80.811,4.06438704]
[1772293666243,4.14530154,80.831,80.811,4.06438704]
[1772293668366,12.37164419,80.83,80.811,4.06438704]
[1772293669960,12.37164419,80.83,80.795,4.06438704]
[1772293669961,4.14530154,80.829,80.795,4.06438704]
[1772293670572,4.14530154,80.827,80.797,4.06438704]
[1772293670943,4.14530154,80.827,80.79,6.122318]
[1772293670944,4.14530154,80.827,80.79,4.06438704]
[1772293671459,4.14530154,80.827,80.791,4.06438704]
[1772293672056,4.14530154,80.844,80.811,4.06438704]
[1772293672348,43.29379166,80.843,80.811,4.06438704]
[1772293672548,4.14530154,80.839,80.811,4.06438704]
[1772293672949,4.14530154,80.839,80.802,4.06438704]
[1772293675065,4.14530154,80.837,80.802,4.06438704]
[1772293675269,4.14530154,80.829,80.802,4.06438704]
[1772293677975,4.14530154,80.827,80.792,4.06438704]
[1772293680285,43.30289758,80.826,80.792,4.06438704]
[1772293680679,4.14530154,80.825,80.792,4.06438704]
[1772293680982,4.14530154,80.819,80.78,6.122318]
[1772293681287,4.14530154,80.809,80.775,12.38002308]
[1772293681678,4.14530154,80.799,80.76,0.2]
[1772293681981,6.122318,80.8,80.76,12.58229967]
[1772293681982,4.14530154,80.789,80.76,12.58229967]
[1772293682179,12.37807595,80.788,80.76,12.58229967]
[1772293682383,4.14530154,80.787,80.76,0.2]
[1772293683582,4.14530154,80.785,80.76,0.2]
[1772293684284,4.14530154,80.785,80.76,4.26438704]
[1772293685463,4.14530154,80.783,80.76,4.26438704]
[1772293686462,4.14530154,80.783,80.76,0.2]
[1772293687758,4.14530154,80.781,80.76,0.2]
[1772293689380,4.14530154,80.779,80.74,0.2]
[1772293690162,4.14530154,80.769,80.74,0.2]
[1772293691088,4.49432998,80.767,80.74,0.2]
[1772293691466,4.49432998,80.767,80.741,1.77746465]
[1772293692381,4.49432998,80.759,80.74,0.2]
[1772293693282,4.49432998,80.757,80.73,0.2]